fUST/lending_fUST_20250708
["ID","MTS","AMOUNT","RATE_DAILY","PERIOD"]
[370316509,1751950248632,-506.71,0.0002,2]
[370316510,1751950248641,-460.0,0.0002,2]
[370316511,1751950248651,-1176.55,0.0002,2]
[370316512,1751950248660,-460.0,0.0002,2]
[370316513,1751950248670,-584.59,0.0002,2]
[370316514,1751950248680,-460.0,0.0002,2]
[370316515,1751950248690,-463.49109307,0.0002,2]
[370316516,1751950248699,-460.0,0.0002,2]
[370316517,1751950248708,-3579.16,0.0002,2]
[370316518,1751950248718,-463.98,0.0002,2]
[370316519,1751950248727,-1277.11,0.0002,2]
[370316520,1751950248737,-460.0,0.0002,2]
[370316521,1751950248747,-460.0,0.0002,2]
[370316522,1751950248757,-460.0,0.0002,2]
[370316523,1751950248767,-1828.92,0.0002,2]
[370316524,1751950248776,-460.0,0.0002,2]
[370316525,1751950248787,-460.0,0.0002,2]
[370316526,1751950248796,-472.2,0.0002,2]
[370316527,1751950248806,-460.0,0.0002,2]
[370316528,1751950248816,-460.0,0.0002,2]
[370316529,1751950248825,-460.0,0.0002,2]
[370316530,1751950248835,-1361.61,0.0002,2]
[370316531,1751950248845,-460.0,0.0002,2]
[370316532,1751950248854,-460.0,0.0002,2]
[370316533,1751950248864,-461.67,0.0002,2]
[370316534,1751950248874,-900.03,0.0002,2]
[370316535,1751950248884,-530.18,0.0002,2]
[370316536,1751950248894,-460.0,0.0002,2]
[370316537,1751950248903,-1366.76,0.0002,2]
[370316538,1751950248913,-460.0,0.0002,2]
[370316539,1751950248922,-460.0,0.0002,2]
[370316540,1751950248932,-471.08767975,0.0002,2]
[370316541,1751950248942,-3027.66,0.0002,2]
[370316542,1751950248952,-196.20029843,0.00020021,2]
[370316543,1751950248962,-390.21062087,0.00020142,2]
[370316544,1751950248972,-967.0,0.00020182,2]
[370316545,1751950248982,-646.0,0.00020182,2]
[370316546,1751950248992,-2153.0,0.00020182,2]
[370316547,1751950249001,-428.111,0.00020182,2]
[370316548,1751950249011,-168.0,0.00020187,2]
[370316549,1751950249021,-166.45192086,0.00020192,2]
[370316550,1751950249030,-224188.79318479,0.00020242,2]
[370316551,1751950249040,-217.210252,0.00020242,2]
[370316552,1751950249049,-500.0,0.00020273,2]
[370316553,1751950249059,-500.0,0.00020273,2]
[370316554,1751950249069,-500.0,0.00020273,2]
[370316555,1751950249079,-500.0,0.00020273,2]
[370316556,1751950249088,-500.0,0.00020273,2]
[370316557,1751950249098,-500.0,0.00020273,2]
[370316558,1751950249107,-500.0,0.00020273,2]
[370316559,1751950249117,-500.0,0.00020273,2]
[370316560,1751950249126,-500.0,0.00020273,2]
[370316561,1751950249136,-500.0,0.00020273,2]
[370316562,1751950249146,-500.0,0.00020273,2]
[370316563,1751950249155,-500.0,0.00020273,2]
[370316564,1751950249165,-500.0,0.00020273,2]
[370316565,1751950249175,-500.0,0.00020273,2]
[370316566,1751950249185,-600.0,0.00020273,2]
[370316567,1751950249194,-500.0,0.00020273,2]
[370316568,1751950249205,-460.0,0.00020273,2]
[370316569,1751950249214,-460.0,0.00020273,2]
[370316570,1751950249224,-460.0,0.00020273,2]
[370316571,1751950249233,-460.0,0.00020273,2]
[370316572,1751950249243,-460.0,0.00020273,2]
[370316573,1751950249252,-460.0,0.00020273,2]
[370316574,1751950249261,-462.39129991,0.00020273,2]
[370316575,1751950249271,-460.0,0.00020273,2]
[370316576,1751950249280,-463.61911342,0.00020273,2]
[370316577,1751950249289,-460.0,0.00020273,2]
[370316578,1751950249299,-347.2799811,0.00020273,2]
[370316579,1751950249309,-166.252067,0.00020273,2]
[370316580,1751950249320,-460.0,0.00020273,2]
[370316581,1751950249331,-460.0,0.00020273,2]
[370316582,1751950249341,-460.0,0.00020273,2]
[370316583,1751950249350,-541.78783455,0.00020273,2]
[370316584,1751950249359,-151.0,0.00020273,2]
[370316585,1751950249369,-487.22519438,0.00020273,2]
[370316586,1751950249379,-460.0,0.00020273,2]
[370316587,1751950249389,-523.85,0.00020273,2]
[370316588,1751950249399,-460.0,0.00020273,2]
[370316589,1751950249410,-528.95,0.00020273,2]
[370316590,1751950249420,-460.0,0.00020273,2]
[370316591,1751950249430,-460.0,0.00020273,2]
[370316592,1751950249439,-460.0,0.00020273,2]
[370316593,1751950249449,-261.05538303,0.00020273,2]
[370316594,1751950249459,-471.84,0.00020273,2]
[370316595,1751950249469,-593.25,0.00020273,2]
[370316596,1751950249479,-460.0,0.00020273,2]
[370316597,1751950249488,-460.0,0.00020273,2]
[370316598,1751950249498,-460.0,0.00020273,2]
[370316599,1751950249507,-460.0,0.00020273,2]
[370316600,1751950249518,-205.26150797,0.00020273,2]
[370316601,1751950249531,-163.0,0.00020273,2]
[370316602,1751950249540,-460.0,0.00020273,2]
[370316603,1751950249550,-1738.35,0.00020273,2]
[370316604,1751950249559,-460.0,0.00020273,2]
[370316605,1751950249571,-460.0,0.00020273,2]
[370316606,1751950249580,-460.0,0.00020273,2]
[370316607,1751950249591,-460.0,0.00020273,2]
[370316608,1751950249602,-460.0,0.00020273,2]
[370316609,1751950249612,-460.0,0.00020273,2]
[370316610,1751950249621,-460.0,0.00020273,2]
[370316611,1751950249631,-460.0,0.00020273,2]
[370316612,1751950249642,-479.91,0.00020273,2]
[370316613,1751950249651,-3130.68,0.00020273,2]
[370316614,1751950249661,-460.0,0.00020273,2]
[370316615,1751950249670,-460.0,0.00020273,2]
[370316616,1751950249680,-460.0,0.00020273,2]
[370316617,1751950249690,-2617.42,0.00020273,2]
[370316618,1751950249699,-460.0,0.00020273,2]
[370316619,1751950249708,-1602.85,0.00020273,2]
[370316620,1751950249717,-460.0,0.00020273,2]
[370316621,1751950249726,-460.0,0.00020273,2]
[370316622,1751950249736,-460.0,0.00020273,2]
[370316623,1751950249745,-460.0,0.00020273,2]
[370316624,1751950249755,-257.41291784,0.00020273,2]
[370316625,1751950249765,-461.71,0.00020273,2]
[370316626,1751950249774,-330.34,0.00020273,2]
[370316627,1751950249784,-460.0,0.00020273,2]
[370316628,1751950249794,-460.0,0.00020273,2]
[370316629,1751950249804,-572.44,0.00020273,2]
[370316630,1751950249814,-460.0,0.00020273,2]
[370316631,1751950249823,-628.9,0.00020273,2]
[370316632,1751950249833,-460.0,0.00020273,2]
[370316633,1751950249842,-511.88929702,0.00020273,2]
[370316634,1751950249851,-1846.83,0.00020273,2]
[370316635,1751950249862,-2942.97,0.00020273,2]
[370316636,1751950249871,-534.64,0.00020273,2]
[370316637,1751950249881,-460.0,0.00020273,2]
[370316638,1751950249891,-904.72,0.00020273,2]
[370316639,1751950249901,-460.0,0.00020273,2]
[370316640,1751950250020,-1204.68,0.00020273,2]
[370316641,1751950250030,-596.2,0.00020273,2]
[370316642,1751950250040,-1756.02,0.00020273,2]
[370316643,1751950250050,-460.0,0.00020273,2]
[370316644,1751950250059,-1313.06,0.00020273,2]
[370316645,1751950250068,-805.83,0.00020273,2]
[370316646,1751950250077,-460.0,0.00020273,2]
[370316647,1751950250087,-460.0,0.00020273,2]
[370316648,1751950250097,-460.0,0.00020273,2]
[370316649,1751950250106,-460.0,0.00020273,2]
[370316650,1751950250116,-1368.5,0.00020273,2]
[370316651,1751950250125,-1638.33,0.00020273,2]
[370316652,1751950250135,-460.0,0.00020273,2]
[370316653,1751950250144,-460.0,0.00020273,2]
[370316654,1751950250153,-460.0,0.00020273,2]
[370316655,1751950250163,-506.71,0.00020273,2]
[370316656,1751950250174,-460.0,0.00020273,2]
[370316657,1751950250184,-1176.55,0.00020273,2]
[370316658,1751950250195,-460.0,0.00020273,2]
[370316659,1751950250205,-584.59,0.00020273,2]
[370316660,1751950250216,-460.0,0.00020273,2]
[370316661,1751950250226,-460.0,0.00020273,2]
[370316662,1751950250235,-3579.16,0.00020273,2]
[370316663,1751950250245,-463.98,0.00020273,2]
[370316664,1751950250255,-1277.11,0.00020273,2]
[370316665,1751950250264,-460.0,0.00020273,2]
[370316666,1751950250273,-460.0,0.00020273,2]
[370316667,1751950250284,-460.0,0.00020273,2]
[370316668,1751950250293,-1828.92,0.00020273,2]
[370316669,1751950250303,-460.0,0.00020273,2]
[370316670,1751950250313,-460.0,0.00020273,2]
[370316671,1751950250323,-472.2,0.00020273,2]
[370316672,1751950250334,-460.0,0.00020273,2]
[370316673,1751950250347,-460.0,0.00020273,2]
[370316674,1751950250357,-460.0,0.00020273,2]
[370316675,1751950250367,-1361.61,0.00020273,2]
[370316676,1751950250379,-460.0,0.00020273,2]
[370316677,1751950250389,-460.0,0.00020273,2]
[370316678,1751950250399,-461.67,0.00020273,2]
[370316679,1751950250408,-900.03,0.00020273,2]
[370316680,1751950250417,-530.18,0.00020273,2]
[370316681,1751950250427,-460.0,0.00020273,2]
[370316682,1751950250436,-1366.76,0.00020273,2]
[370316683,1751950250445,-460.0,0.00020273,2]
[370316684,1751950250455,-258.02363552,0.00020273,2]
[370316685,1751950250464,-3027.66,0.00020273,2]
[370316686,1751950250474,-168.0,0.00020273,2]
[370316687,1751950250485,-166.45192086,0.00020356,2]
[370316688,1751950250497,-166.45192086,0.00020521,2]
[370316689,1751950250508,-202.03377766,0.00020521,3]
[370316690,1751950250517,-848.40570879,0.00020521,3]
[370316691,1751950250530,-12586.7184932,0.00020521,3]
[370316692,1751950250539,-160.0,0.00020521,3]
[370316693,1751950250548,-215.0738,0.00020524,2]
[370316694,1751950250558,-235.0,0.00020531,2]
[370316695,1751950250567,-2202.78,0.00020538,3]
[370316696,1751950250577,-1101.4,0.00020538,3]
[370316697,1751950250586,-550.7,0.00020538,3]
[370316698,1751950250595,-460.0,0.00020547,2]
[370316699,1751950250604,-264.76244901,0.00020547,2]
[370316700,1751950250614,-460.0,0.00020547,2]
[370316701,1751950250624,-460.0,0.00020547,2]
[370316702,1751950250633,-460.0,0.00020547,2]
[370316703,1751950250643,-460.0,0.00020547,2]
[370316704,1751950250652,-460.0,0.00020547,2]
[370316705,1751950250662,-460.0,0.00020547,2]
[370316706,1751950250672,-435.39161075,0.00020547,2]
[370316707,1751950250681,-460.0,0.00020547,2]
[370316708,1751950250692,-523.85,0.00020547,2]
[370316709,1751950250703,-528.95,0.00020547,2]
[370316710,1751950250715,-460.0,0.00020547,2]
[370316711,1751950250725,-460.0,0.00020547,2]
[370316712,1751950250738,-471.84,0.00020547,2]
[370316713,1751950250747,-593.25,0.00020547,2]
[370316714,1751950250757,-460.0,0.00020547,2]
[370316715,1751950250767,-460.0,0.00020547,2]
[370316716,1751950250776,-526.17149347,0.00020547,2]
[370316717,1751950250786,-460.0,0.00020547,2]
[370316718,1751950250795,-460.0,0.00020547,2]
[370316719,1751950250805,-1738.35,0.00020547,2]
[370316720,1751950250814,-432.954548,0.00020547,2]
[370316721,1751950250824,-460.0,0.00020547,2]
[370316722,1751950250833,-460.0,0.00020547,2]
[370316723,1751950250843,-460.0,0.00020547,2]
[370316724,1751950250854,-460.0,0.00020547,2]
[370316725,1751950250863,-460.0,0.00020547,2]
[370316726,1751950250873,-460.0,0.00020547,2]
[370316727,1751950250884,-460.0,0.00020547,2]
[370316728,1751950250894,-479.91,0.00020547,2]
[370316729,1751950250904,-3130.68,0.00020547,2]
[370316730,1751950250914,-460.0,0.00020547,2]
[370316731,1751950250923,-460.0,0.00020547,2]
[370316732,1751950250933,-460.0,0.00020547,2]
[370316733,1751950250942,-2617.42,0.00020547,2]
[370316734,1751950250953,-460.0,0.00020547,2]
[370316735,1751950250962,-1602.85,0.00020547,2]
[370316736,1751950250973,-460.0,0.00020547,2]
[370316737,1751950250982,-460.0,0.00020547,2]
[370316738,1751950250992,-460.0,0.00020547,2]
[370316739,1751950251003,-460.0,0.00020547,2]
[370316740,1751950251013,-461.71,0.00020547,2]
[370316741,1751950251023,-460.0,0.00020547,2]
[370316742,1751950251032,-460.0,0.00020547,2]
[370316743,1751950251042,-572.44,0.00020547,2]
[370316744,1751950251051,-460.0,0.00020547,2]
[370316745,1751950251061,-628.9,0.00020547,2]
[370316746,1751950251071,-460.0,0.00020547,2]
[370316747,1751950251080,-1846.83,0.00020547,2]
[370316748,1751950251089,-2942.97,0.00020547,2]
[370316749,1751950251099,-534.64,0.00020547,2]
[370316750,1751950251108,-460.0,0.00020547,2]
[370316751,1751950251117,-904.72,0.00020547,2]
[370316752,1751950251126,-460.0,0.00020547,2]
[370316753,1751950251136,-1204.68,0.00020547,2]
[370316754,1751950251145,-596.2,0.00020547,2]
[370316755,1751950251154,-1756.02,0.00020547,2]
[370316756,1751950251164,-460.0,0.00020547,2]
[370316757,1751950251173,-1313.06,0.00020547,2]
[370316758,1751950251182,-805.83,0.00020547,2]
[370316759,1751950251191,-460.0,0.00020547,2]
[370316760,1751950251200,-460.0,0.00020547,2]
[370316761,1751950251210,-460.0,0.00020547,2]
[370316762,1751950251219,-1368.5,0.00020547,2]
[370316763,1751950251228,-1638.33,0.00020547,2]
[370316764,1751950251237,-460.0,0.00020547,2]
[370316765,1751950251247,-460.0,0.00020547,2]
[370316766,1751950251257,-287.11635288,0.00020547,2]
[370316767,1751950251266,-506.71,0.00020547,2]
[370316768,1751950251275,-1176.55,0.00020547,2]
[370316769,1751950251285,-460.0,0.00020547,2]
[370316770,1751950251294,-584.59,0.00020547,2]
[370316771,1751950251304,-460.0,0.00020547,2]
[370316772,1751950251314,-460.0,0.00020547,2]
[370316773,1751950251324,-1760.54238715,0.00020547,2]
[370316774,1751950251734,-460.0,0.00019178,2]
[370316775,1751950251744,-267.39027318,0.00019452,2]
[370316776,1751950251754,-460.0,0.00019452,2]
[370316777,1751950251763,-559.36232667,0.00019726,2]
[370316778,1751950251773,-859.48106723,0.00020547,2]
[370316779,1751950251824,-959.13654562,0.00020547,2]
[370316780,1751950251834,-463.98,0.00020547,2]
[370316781,1751950251844,-1277.11,0.00020547,2]
[370316782,1751950251854,-460.0,0.00020547,2]
[370316783,1751950251863,-460.0,0.00020547,2]
[370316784,1751950251873,-460.0,0.00020547,2]
[370316785,1751950251883,-1828.92,0.00020547,2]
[370316786,1751950251893,-460.0,0.00020547,2]
[370316787,1751950251903,-460.0,0.00020547,2]
[370316788,1751950251912,-472.2,0.00020547,2]
[370316789,1751950252031,-276.15727418,0.00020547,2]
[370316790,1751950252045,-183.84272582,0.00020547,2]
[370316791,1751950252055,-460.0,0.00020547,2]
[370316792,1751950252066,-460.0,0.00020547,2]
[370316793,1751950252076,-1361.61,0.00020547,2]
[370316794,1751950252087,-460.0,0.00020547,2]
[370316795,1751950252097,-460.0,0.00020547,2]
[370316796,1751950252107,-461.67,0.00020547,2]
[370316797,1751950252118,-900.03,0.00020547,2]
[370316798,1751950252129,-341.57300298,0.00020547,2]
[370316799,1751950252142,-188.60699702,0.00020547,2]
[370316800,1751950252151,-252.26303361,0.00020547,2]
[370316801,1751950252163,-247.55504113,0.00020547,2]
[370316802,1751950252173,-1366.76,0.00020547,2]
[370316803,1751950252185,-460.0,0.00020547,2]
[370316804,1751950252194,-2937.51858192,0.00020547,2]
[370316805,1751950252258,-90.14141808,0.00020547,2]
[370316806,1751950252267,-827.51717829,0.000206,2]
[370316807,1751950252278,-484.87134794,0.000206,2]
[370316808,1751950252291,-1192.69147377,0.000206,2]
[370316809,1751950252300,-4000.0,0.00020603,4]
[370316810,1751950252310,-284.69544916,0.00020613,2]
[370316811,1751950252319,-12069.56775314,0.00020613,2]
[370316812,1751950252331,-69828.43703871,0.00020613,2]
[370316813,1751950252342,-343.79477253,0.00020613,2]
[370316814,1751950252353,-274.20745242,0.00020613,2]
[370316815,1751950252365,-466.17005185,0.00020613,2]
[370316816,1751950252375,-168.0,0.00020614,2]
[370316817,1751950252385,-531.88,0.00020686,2]
[370316818,1751950252394,-166.45192086,0.00020712,2]
[370316819,1751950252404,-167.009442,0.00020725,2]
[370316820,1751950252413,-150.0,0.00020766,2]
[370316821,1751950252422,-235.0,0.00020782,2]
[370316822,1751950252432,-420.0,0.00020789,2]
[370316823,1751950252441,-420.0,0.00020789,2]
[370316824,1751950252450,-420.0,0.00020789,2]
[370316825,1751950252459,-531.99568363,0.0002079,2]
[370316826,1751950252471,-1148.00431637,0.0002079,2]
[370316827,1751950252480,-1303.48129688,0.00020799,2]
[370316828,1751950252490,-166.666668,0.00020805,2]
[370316829,1751950252500,-1000.0,0.00020821,2]
[370316830,1751950252509,-500.54484044,0.00020821,2]
[370316831,1751950252519,-1001.80847414,0.00020821,2]
[370316832,1751950252531,-501.05832047,0.00020821,2]
[370316833,1751950252544,-687.73976448,0.00020821,2]
[370316834,1751950252553,-501.16852859,0.00020821,2]
[370316835,1751950252562,-1000.0,0.00020821,2]
[370316836,1751950252571,-116.37716708,0.00020821,2]
[370316837,1751950252905,-428.59210166,0.00019178,2]
[370316838,1751950252915,-235.05961274,0.00020821,2]
[370316839,1751950252927,-648.56322018,0.00020821,2]
[370316840,1751950252936,-503.96402128,0.00020821,2]
[370316841,1751950252946,-1000.0,0.00020821,2]
[370316842,1751950252955,-1000.0,0.00020821,2]
[370316843,1751950252965,-1000.9539535,0.00020821,2]
[370316844,1751950252975,-1000.0,0.00020821,2]
[370316845,1751950252986,-746.41197546,0.00020821,2]
[370316846,1751950253421,-453.58802454,0.00020821,2]
[370316847,1751950253432,-1000.0,0.00020821,2]
[370316848,1751950253443,-400.65196731,0.00020821,2]
[370316849,1751950253456,-460.0,0.00020821,2]
[370316850,1751950253467,-463.33443809,0.00020821,2]
[370316851,1751950253476,-523.85,0.00020821,2]
[370316852,1751950253486,-528.95,0.00020821,2]
[370316853,1751950253496,-460.0,0.00020821,2]
[370316854,1751950253506,-471.84,0.00020821,2]
[370316855,1751950253517,-593.25,0.00020821,2]
[370316856,1751950253531,-460.0,0.00020821,2]
[370316857,1751950253542,-460.0,0.00020821,2]
[370316858,1751950253551,-509.00980804,0.00020821,2]
[370316859,1751950253562,-460.0,0.00020821,2]
[370316860,1751950253573,-1738.35,0.00020821,2]
[370316861,1751950253583,-460.0,0.00020821,2]
[370316862,1751950253593,-460.0,0.00020821,2]
[370316863,1751950253605,-460.0,0.00020821,2]
[370316864,1751950253615,-460.0,0.00020821,2]
[370316865,1751950253625,-460.0,0.00020821,2]
[370316866,1751950253634,-460.0,0.00020821,2]
[370316867,1751950253646,-460.0,0.00020821,2]
[370316868,1751950253655,-97.01094683,0.00020821,2]
[370316869,1751950253667,-382.89905317,0.00020821,2]
[370316870,1751950253676,-756.79135819,0.00020821,2]
[370316871,1751950253688,-1363.4458608,0.00020821,2]
[370316879,1751950711639,1000.0,0.00025196,120]
[370316880,1751950722994,1000.0,0.00025196,120]
[370316881,1751950730605,503.0,0.00025196,120]
[370316884,1751951203332,-153.2712444,0.00018106,2]
[370316885,1751951217222,427.2387,0.00018,2]
[370316886,1751951291844,2800.5,0.0002519,120]
[370316943,1751951432426,-9.7206116,0.00018106,2]
[370316945,1751951432437,-1200.0,0.00018218,2]
[370316947,1751951432447,-1074.0,0.0001822,2]
[370316949,1751951432456,-300.0,0.0001822,2]
[370316951,1751951432467,-300.0,0.0001822,2]
[370316952,1751951432477,-300.0,0.0001822,2]
[370316954,1751951432488,-300.0,0.0001822,2]
[370316957,1751951432499,-462.16160579,0.00018221,2]
[370317011,1751951438320,-665.54,0.00018221,2]
[370317012,1751951438340,-2328.55081501,0.00018221,2]
[370317013,1751951438477,-2350.00000001,0.00018221,2]
[370317024,1751951440689,-21097.89116489,0.00018221,2]
[370317025,1751951440705,-9090.0431368,0.00018221,2]
[370317026,1751951440715,-924.76965058,0.00019078,2]
[370317027,1751951440725,-207.4,0.00019166,2]
[370317028,1751951440736,-509.40328434,0.00019173,2]
[370317029,1751951440745,-155.0,0.00019177,2]
[370317030,1751951440757,-480.57299574,0.00019178,2]
[370317031,1751951440768,-460.0,0.00019178,2]
[370317032,1751951440778,-463.17078575,0.00019178,2]
[370317033,1751951440787,-460.0,0.00019178,2]
[370317034,1751951440797,-460.0,0.00019178,2]
[370317035,1751951440808,-507.28655224,0.00019178,2]
[370317036,1751951440817,-409.2456508,0.00019178,2]
[370317037,1751951440827,-159.62728339,0.00019178,2]
[370317038,1751951440837,-460.0,0.00019178,2]
[370317039,1751951440847,-470.63050591,0.00019178,2]
[370317040,1751951440857,-468.49466097,0.00019178,2]
[370317041,1751951440867,-460.0,0.00019178,2]
[370317042,1751951440876,-470.00264771,0.00019178,2]
[370317043,1751951440886,-480.9132026,0.00019178,2]
[370317044,1751951440896,-465.09694136,0.00019178,2]
[370317045,1751951440905,-466.93969448,0.00019178,2]
[370317046,1751951440915,-394.37,0.00019178,2]
[370317047,1751951440925,-320.33955042,0.00019178,2]
[370317048,1751951440940,-139.66044958,0.00019178,2]
[370317049,1751951440951,-460.0,0.00019178,2]
[370317050,1751951440961,-460.0,0.00019178,2]
[370317051,1751951440970,-540.0,0.00019178,2]
[370317052,1751951440980,-336.2881086,0.00019178,2]
[370317053,1751951440989,-460.0,0.00019178,2]
[370317054,1751951440999,-460.0,0.00019178,2]
[370317055,1751951441009,-460.0,0.00019178,2]
[370317056,1751951441019,-460.0,0.00019178,2]
[370317057,1751951441030,-460.0,0.00019178,2]
[370317058,1751951441040,-464.2505304,0.00019178,2]
[370317059,1751951441051,-460.0,0.00019178,2]
[370317060,1751951441060,-460.0,0.00019178,2]
[370317061,1751951441070,-460.0,0.00019178,2]
[370317062,1751951441080,-460.0,0.00019178,2]
[370317063,1751951441089,-460.0,0.00019178,2]
[370317064,1751951441099,-460.0,0.00019178,2]
[370317065,1751951441109,-468.98618099,0.00019178,2]
[370317066,1751951441119,-460.0,0.00019178,2]
[370317067,1751951441129,-460.0,0.00019178,2]
[370317068,1751951441139,-460.0,0.00019178,2]
[370317069,1751951441149,-460.0,0.00019178,2]
[370317070,1751951441159,-460.0,0.00019178,2]
[370317071,1751951441169,-471.08367035,0.00019178,2]
[370317072,1751951441179,-460.0,0.00019178,2]
[370317073,1751951441189,-460.0,0.00019178,2]
[370317074,1751951441200,-454.67813076,0.00019178,2]
[370317075,1751951441211,-466.55599011,0.00019178,2]
[370317076,1751951441220,-460.0,0.00019178,2]
[370317077,1751951441230,-460.0,0.00019178,2]
[370317078,1751951441241,-460.0,0.00019178,2]
[370317079,1751951441251,-459.87050425,0.00019178,2]
[370317080,1751951441472,-460.0,0.00019178,2]
[370317081,1751951441483,-466.16692243,0.00019178,2]
[370317082,1751951441493,-460.0,0.00019178,2]
[370317083,1751951441504,-460.0,0.00019178,2]
[370317084,1751951441514,-460.0,0.00019178,2]
[370317085,1751951441524,-460.0,0.00019178,2]
[370317086,1751951441535,-464.79158474,0.00019178,2]
[370317087,1751951441545,-460.0,0.00019178,2]
[370317088,1751951441554,-460.0,0.00019178,2]
[370317089,1751951441564,-461.36909898,0.00019178,2]
[370317090,1751951441573,-460.0,0.00019178,2]
[370317091,1751951441584,-460.0,0.00019178,2]
[370317092,1751951441594,-460.0,0.00019178,2]
[370317093,1751951441603,-460.0,0.00019178,2]
[370317094,1751951441612,-460.0,0.00019178,2]
[370317095,1751951441622,-460.0,0.00019178,2]
[370317096,1751951441632,-460.0,0.00019178,2]
[370317097,1751951441641,-460.0,0.00019178,2]
[370317098,1751951441651,-460.0,0.00019178,2]
[370317099,1751951441661,-460.0,0.00019178,2]
[370317100,1751951441671,-466.66679279,0.00019178,2]
[370317101,1751951441681,-460.0,0.00019178,2]
[370317102,1751951441690,-460.0,0.00019178,2]
[370317103,1751951441700,-492.32,0.00019178,2]
[370317104,1751951441710,-460.0,0.00019178,2]
[370317105,1751951441720,-502.93754822,0.00019178,2]
[370317106,1751951441729,-462.55391539,0.00019178,2]
[370317107,1751951441739,-464.58028659,0.00019178,2]
[370317108,1751951441749,-460.0,0.00019178,2]
[370317109,1751951441758,-470.89853775,0.00019178,2]
[370317110,1751951441768,-460.0,0.00019178,2]
[370317111,1751951441779,-460.0,0.00019178,2]
[370317112,1751951441788,-471.14852699,0.00019178,2]
[370317113,1751951441798,-460.0,0.00019178,2]
[370317114,1751951441808,-460.0,0.00019178,2]
[370317115,1751951441819,-407.17220266,0.00019178,2]
[370317116,1751951441828,-460.0,0.00019178,2]
[370317117,1751951441837,-465.84333321,0.00019178,2]
[370317118,1751951441848,-485.3,0.00019178,2]
[370317119,1751951441858,-466.93332094,0.00019178,2]
[370317120,1751951441880,-460.0,0.00019178,2]
[370317121,1751951441890,-460.0,0.00019178,2]
[370317122,1751951441899,-464.26759024,0.00019178,2]
[370317123,1751951441909,-460.0,0.00019178,2]
[370317124,1751951441918,-460.0,0.00019178,2]
[370317125,1751951441928,-460.0,0.00019178,2]
[370317126,1751951441937,-460.0,0.00019178,2]
[370317127,1751951441948,-460.0,0.00019178,2]
[370317128,1751951441957,-460.0,0.00019178,2]
[370317129,1751951441967,-463.5634391,0.00019178,2]
[370317130,1751951441977,-460.0,0.00019178,2]
[370317131,1751951441987,-432.15613922,0.00019178,2]
[370317132,1751951442006,-27.84386078,0.00019178,2]
[370317133,1751951442017,-460.0,0.00019178,2]
[370317134,1751951442026,-462.46629176,0.00019178,2]
[370317135,1751951442036,-497.6,0.00019178,2]
[370317136,1751951442046,-460.0,0.00019178,2]
[370317137,1751951442056,-465.7245759,0.00019178,2]
[370317138,1751951442067,-546.62043999,0.00019178,2]
[370317139,1751951442077,-471.06856635,0.00019178,2]
[370317140,1751951442087,-460.0,0.00019178,2]
[370317141,1751951442096,-460.0,0.00019178,2]
[370317142,1751951442106,-472.98918173,0.00019178,2]
[370317143,1751951442116,-460.0,0.00019178,2]